bitfinex/quotes_BTCUSD_20250623
["timestamp","ask_amount","ask_price","bid_price","bid_amount"]
[1750674416462,0.25948353,101640.0,101630.0,0.0342]
[1750674417098,0.2693214,101640.0,101630.0,0.0255362]
[1750674417509,0.27915936,101640.0,101630.0,0.0255362]
[1750674417711,0.2693214,101640.0,101630.0,0.0255362]
[1750674417918,0.27915946,101640.0,101630.0,0.0255362]
[1750674418126,0.27915946,101640.0,101630.0,0.001]
[1750674418468,0.26932899,101640.0,101630.0,0.001]
[1750674418665,0.27916705,101640.0,101630.0,0.001]
[1750674419560,0.26932899,101640.0,101630.0,0.001]
[1750674419710,0.27855659,101640.0,101630.0,0.001]
[1750674420454,0.29823271,101640.0,101630.0,0.001]
[1750674421073,0.28840565,101640.0,101630.0,0.001]
[1750674421219,0.28840565,101640.0,101630.0,0.0326]
[1750674421441,0.29824381,101640.0,101630.0,0.0326]
[1750674421641,0.49501673,101640.0,101630.0,0.0098224]
[1750674421843,0.00983874,101630.0,101600.0,0.11287433]
[1750674422044,0.16016,101620.0,101600.0,0.21317372]
[1750674422314,0.04128,101610.0,101600.0,0.08328033]
[1750674422836,0.04128,101610.0,101600.0,0.00413901]
[1750674424091,0.04128,101610.0,101600.0,0.00613901]
[1750674424294,0.04128,101610.0,101600.0,0.01113901]
[1750674424494,0.04128,101610.0,101600.0,0.00613901]
[1750674424724,0.04128,101610.0,101600.0,0.06653901]
[1750674424930,0.04128,101610.0,101600.0,0.07053901]
[1750674432277,0.02951757,101630.0,101600.0,0.00813901]
[1750674432472,0.20144,101620.0,101610.0,0.064]
[1750674433311,0.21127971,101620.0,101610.0,0.064]
[1750674433468,0.21127971,101620.0,101610.0,0.0324]
[1750674433668,0.20144,101620.0,101610.0,0.0324]
[1750674434341,0.2112798,101620.0,101610.0,0.0324]
[1750674434474,0.20144,101620.0,101610.0,0.0324]
[1750674434898,0.20144,101620.0,101610.0,0.064]
[1750674442861,0.2112799,101620.0,101610.0,0.0324]
[1750674443016,0.20144,101620.0,101610.0,0.0324]
[1750674443359,0.21127971,101620.0,101610.0,0.0324]
[1750674443676,0.23095961,101620.0,101610.0,0.0324]
[1750674444319,0.2407998,101620.0,101610.0,0.0324]
[1750674444535,0.23095961,101620.0,101610.0,0.0324]
[1750674444734,0.2407998,101620.0,101610.0,0.0324]
[1750674444968,0.25924169,101620.0,101600.0,0.06783901]
[1750674445178,0.26908217,101620.0,101600.0,0.06783901]
[1750674445936,0.25924169,101620.0,101600.0,0.06783901]
[1750674446161,0.24080038,101620.0,101600.0,0.06783901]
[1750674446567,0.00984067,101610.0,101600.0,0.06783901]
[1750674446975,0.4376131,101620.0,101600.0,0.06783901]
[1750674447180,0.46122121,101620.0,101600.0,0.06783901]
[1750674447831,0.00984067,101610.0,101600.0,0.06983901]
[1750674448356,0.0295224,101610.0,101600.0,0.06983901]
[1750674448541,0.00984067,101610.0,101600.0,0.06983901]
[1750674449753,0.41797262,101620.0,101600.0,0.06983901]
[1750674449964,0.24477975,101620.0,101600.0,0.06983901]
[1750674450168,0.24477975,101620.0,101600.0,0.07183901]
[1750674450811,0.24477917,101620.0,101600.0,0.06983901]
[1750674451015,0.25461946,101620.0,101600.0,0.06783901]
[1750674451189,0.25461937,101620.0,101600.0,0.06783901]
[1750674452164,0.24477908,101620.0,101600.0,0.06783901]
[1750674452368,0.25461927,101620.0,101600.0,0.06783901]
[1750674453218,0.26445956,101620.0,101600.0,0.06783901]
[1750674454036,0.25461927,101620.0,101600.0,0.06783901]
[1750674454480,0.26445965,101620.0,101600.0,0.06783901]
[1750674454631,0.25461927,101620.0,101600.0,0.06783901]
[1750674455134,0.26445956,101620.0,101600.0,0.06783901]
[1750674456319,0.34,101610.0,101600.0,0.06783901]
[1750674456857,0.34984067,101610.0,101600.0,0.06783901]
[1750674457074,0.35968144,101610.0,101600.0,0.06783901]
[1750674457481,0.35968144,101610.0,101600.0,0.06983901]
[1750674457885,0.35968144,101610.0,101600.0,0.07183901]
[1750674458078,0.3695224,101610.0,101600.0,0.07183901]
[1750674458453,0.35968144,101610.0,101600.0,0.07183901]
[1750674458863,0.3695224,101610.0,101600.0,0.07183901]
[1750674459064,0.35968144,101610.0,101600.0,0.07183901]
[1750674460138,0.35968154,101610.0,101600.0,0.07183901]
[1750674460292,0.35968154,101610.0,101600.0,0.03943901]
[1750674460293,0.3695225,101610.0,101600.0,0.03943901]
[1750674460509,0.35968144,101610.0,101600.0,0.03943901]
[1750674460717,0.34984067,101610.0,101600.0,0.03943901]
[1750674460936,0.34984067,101610.0,101600.0,0.07103901]
[1750674460937,0.35968144,101610.0,101600.0,0.07103901]
[1750674461367,0.37936346,101610.0,101600.0,0.07103901]
[1750674461574,0.37936346,101610.0,101600.0,0.06903901]
[1750674461794,0.37936346,101610.0,101600.0,0.06703901]
[1750674462853,0.3695224,101610.0,101600.0,0.06703901]
[1750674463499,0.35968144,101610.0,101600.0,0.06703901]
[1750674463695,0.36956231,101610.0,101600.0,0.06703901]
[1750674464692,0.37940337,101610.0,101600.0,0.06703901]
[1750674464892,0.37940327,101610.0,101600.0,0.06703901]
[1750674465971,0.35972144,101610.0,101600.0,0.06703901]
[1750674466516,0.3695624,101610.0,101600.0,0.06703901]
[1750674466932,0.37816157,101610.0,101600.0,0.06703901]
[1750674467134,0.38800263,101610.0,101600.0,0.06703901]
[1750674467307,0.37816157,101610.0,101600.0,0.06703901]
[1750674467714,0.38800253,101610.0,101600.0,0.06703901]
[1750674468535,0.37817748,101610.0,101600.0,0.06703901]
[1750674469000,0.36833671,101610.0,101600.0,0.06703901]
[1750674469698,0.37817767,101610.0,101600.0,0.06703901]
[1750674469921,0.36833671,101610.0,101600.0,0.06703901]
[1750674470141,0.37817769,101610.0,101600.0,0.06703901]
[1750674470603,0.36833682,101610.0,101600.0,0.06703901]
[1750674471932,0.37817769,101610.0,101600.0,0.06703901]
[1750674472556,0.35972154,101610.0,101600.0,0.06703901]
[1750674472687,0.37818326,101610.0,101600.0,0.06703901]
[1750674472895,0.37818316,101610.0,101600.0,0.06703901]
[1750674473353,0.38802412,101610.0,101600.0,0.06703901]
[1750674473590,0.37818316,101610.0,101600.0,0.06703901]
[1750674474046,0.38802412,101610.0,101600.0,0.06703901]
[1750674474476,0.41166358,101610.0,101600.0,0.06703901]
[1750674475340,0.42150474,101610.0,101600.0,0.06703901]
[1750674475548,0.41166515,101610.0,101600.0,0.00413901]
[1750674475778,0.35968397,101600.0,101590.0,0.0312]
[1750674475915,0.57182747,101600.0,101590.0,0.0312]
[1750674476115,0.81003786,101600.0,101590.0,0.0312]
[1750674476765,0.3498429,101590.0,101580.0,0.05394596]
[1750674476971,0.35968542,101590.0,101580.0,0.05394596]
[1750674477373,0.37815342,101590.0,101580.0,0.05394596]
[1750674477574,0.38887763,101590.0,101580.0,0.05394596]
[1750674477757,0.39872053,101590.0,101580.0,0.05394596]
[1750674477951,0.36952832,101590.0,101580.0,0.05394596]
[1750674479006,0.35968542,101590.0,101580.0,0.05394596]
[1750674479146,0.34984261,101590.0,101580.0,0.05394596]
[1750674479364,0.35968542,101590.0,101580.0,0.05394596]
[1750674479753,0.35968542,101590.0,101580.0,0.08714596]
[1750674480784,0.36952832,101590.0,101580.0,0.08714596]
[1750674481935,0.35968542,101590.0,101580.0,0.08714596]
[1750674482540,0.34984261,101590.0,101580.0,0.08714596]
[1750674482740,0.35968542,101590.0,101580.0,0.08714596]
[1750674483156,0.38888947,101590.0,101580.0,0.08714596]
[1750674483560,0.39873237,101590.0,101580.0,0.08714596]
[1750674484224,0.59560339,101590.0,101580.0,0.04705815]
[1750674484468,0.62790339,101590.0,101580.0,0.01705815]
[1750674484865,0.59560339,101590.0,101580.0,0.01705815]
[1750674485817,0.38889014,101590.0,101580.0,0.01705815]
[1750674486025,0.39873353,101590.0,101580.0,0.04825815]
[1750674486458,0.5956033,101590.0,101580.0,0.04825815]
[1750674486663,0.39873353,101590.0,101580.0,0.04825815]
[1750674486839,0.39873343,101590.0,101580.0,0.04825815]
[1750674487219,0.60544668,101590.0,101580.0,0.01705815]
[1750674487424,0.63584668,101590.0,101580.0,0.01705815]
[1750674488300,0.63644668,101590.0,101580.0,0.01705815]
[1750674488541,0.57080405,101590.0,101580.0,0.04895815]
[1750674488720,0.2804496,101610.0,101600.0,0.0319]
[1750674488919,1.02830562,101610.0,101600.0,0.0319]
[1750674489242,1.02830562,101610.0,101590.0,0.0621]
[1750674489243,0.34984164,101600.0,101590.0,0.0621]
[1750674489487,0.34,101600.0,101590.0,0.0621]
[1750674490519,0.34984174,101600.0,101590.0,0.0621]
[1750674490885,0.35284174,101600.0,101590.0,0.0621]
[1750674491293,0.36268367,101600.0,101590.0,0.0621]
[1750674491498,0.35284174,101600.0,101590.0,0.0621]
[1750674492065,0.36268367,101600.0,101590.0,0.0621]
[1750674492230,0.35284174,101600.0,101590.0,0.0621]
[1750674492438,0.36268377,101600.0,101590.0,0.0621]
[1750674492679,0.36268367,101600.0,101590.0,0.0621]
[1750674493155,0.3725258,101600.0,101590.0,0.0301]
[1750674493560,0.36268367,101600.0,101590.0,0.0301]
[1750674493771,0.3725257,101600.0,101590.0,0.0301]
[1750674494517,0.37252589,101600.0,101580.0,0.08165815]
[1750674494722,0.54156,101590.0,101580.0,0.08165815]
[1750674495592,0.55140261,101590.0,101580.0,0.08165815]
[1750674496050,0.57108842,101590.0,101580.0,0.08165815]
[1750674496579,0.58093161,101590.0,101580.0,0.08165815]
[1750674496782,0.57108842,101590.0,101580.0,0.08165815]
[1750674497524,0.57112842,101590.0,101580.0,0.08165815]
[1750674497684,0.58097161,101590.0,101580.0,0.08165815]
[1750674497884,0.58097152,101590.0,101580.0,0.08165815]
[1750674498307,0.57112842,101590.0,101580.0,0.08165815]
[1750674498715,0.55144261,101590.0,101580.0,0.08165815]
[1750674499077,0.54156,101590.0,101580.0,0.08165815]
[1750674500768,0.20156,101590.0,101580.0,0.08165815]
[1750674502628,4e-05,101590.0,101580.0,0.08165815]
[1750674502842,0.04136,101590.0,101580.0,0.09197323]
[1750674503067,0.20156,101590.0,101580.0,0.09197323]
[1750674503289,0.20156,101590.0,101580.0,0.08165815]
[1750674505769,0.54156,101590.0,101580.0,0.08165815]
[1750674508139,0.20152,101590.0,101580.0,0.08165815]
[1750674509522,0.04132,101590.0,101580.0,0.08165815]
[1750674509737,0.04132,101590.0,101580.0,0.19251873]
[1750674510427,0.38132,101590.0,101580.0,0.19251873]
[1750674512039,0.04132,101590.0,101580.0,0.19251873]
[1750674512963,0.04132,101590.0,101580.0,0.18195754]
[1750674519109,0.16028,101600.0,101580.0,0.18195754]
[1750674519110,0.2016,101600.0,101580.0,0.11735754]
[1750674519316,0.2016,101600.0,101590.0,0.0645]
[1750674520363,0.2026,101600.0,101590.0,0.0645]
[1750674520571,0.5426,101600.0,101590.0,0.0645]
[1750674520777,0.5416,101600.0,101590.0,0.0645]
[1750674521189,0.54272,101600.0,101590.0,0.0645]
[1750674521984,0.38232,101600.0,101590.0,0.0645]
[1750674522189,0.54472,101600.0,101590.0,0.0645]
[1750674542890,0.54472,101600.0,101590.0,0.05720311]
[1750674543118,0.54472,101600.0,101590.0,0.0332]
[1750674543256,0.54472,101600.0,101590.0,0.03138165]
[1750674547432,0.54472,101600.0,101590.0,0.06238165]
[1750674548699,0.54472,101600.0,101590.0,0.03138165]
[1750674551287,0.54472,101600.0,101590.0,0.06428165]
[1750674554320,0.38432,101600.0,101590.0,0.06428165]
[1750674554782,0.54452,101600.0,101590.0,0.06428165]
[1750674554987,0.38428,101600.0,101590.0,0.16458104]
[1750674555201,0.54448,101600.0,101590.0,0.16458104]
[1750674556034,0.54248,101600.0,101590.0,0.16458104]
[1750674556655,0.54248,101600.0,101590.0,0.16658104]
[1750674557072,0.38128,101600.0,101590.0,0.16658104]
[1750674557479,0.38128,101600.0,101590.0,0.16858104]
[1750674582481,0.41208,101600.0,101590.0,0.004]
[1750674583001,0.38128,101600.0,101590.0,0.004]
[1750674583801,0.41358,101600.0,101590.0,0.004]
[1750674592360,0.46416377,101600.0,101590.0,0.004]
[1750674592771,0.48261583,101600.0,101590.0,0.004]
[1750674592981,0.48261583,101600.0,101590.0,0.002]
[1750674593184,0.49245796,101600.0,101590.0,0.002]
[1750674593390,0.53575697,101600.0,101590.0,0.002]
[1750674593598,0.72276571,101600.0,101590.0,0.002]
[1750674593810,0.38124271,101590.0,101580.0,0.01705815]
[1750674594024,0.55124561,101590.0,101580.0,0.01705815]
[1750674594229,0.59358871,101590.0,101580.0,0.01705815]
[1750674594440,0.58374561,101590.0,101580.0,0.01705815]
[1750674594851,0.39312177,101590.0,101580.0,0.01705815]
[1750674595060,0.24374561,101590.0,101580.0,0.01705815]
[1750674595475,0.24374561,101590.0,101580.0,0.01905815]
[1750674595694,0.24374561,101590.0,101580.0,0.02105815]
[1750674596264,0.24374561,101590.0,101580.0,0.01905815]
[1750674596890,0.58374561,101590.0,101580.0,0.01905815]
[1750674597086,0.59358871,101590.0,101580.0,0.01905815]
[1750674597294,0.59358871,101590.0,101580.0,0.01705815]
[1750674597498,0.58374561,101590.0,101580.0,0.01705815]
[1750674597848,0.59358871,101590.0,101580.0,0.01705815]
[1750674598069,0.603432,101590.0,101580.0,0.01705815]
[1750674599089,0.6328753,101590.0,101580.0,0.01705815]
[1750674599514,0.62303201,101590.0,101580.0,0.01705815]
[1750674599851,0.61318901,101590.0,101580.0,0.01705815]
[1750674600425,0.6230323,101590.0,101580.0,0.01705815]
[1750674600827,0.57084601,101590.0,101580.0,0.01705815]
[1750674601069,0.5905321,101590.0,101580.0,0.01705815]
[1750674601501,0.60037549,101590.0,101580.0,0.01705815]
[1750674601711,0.63227549,101590.0,101580.0,0.01705815]
[1750674602173,0.81930313,101590.0,101580.0,0.01705815]
[1750674603529,0.34,101580.0,101570.0,0.02149263]
[1750674603753,0.38124,101580.0,101570.0,0.05359263]
[1750674607353,0.38124,101580.0,101570.0,0.08559263]
[1750674608385,0.38124,101580.0,101570.0,0.02149263]
[1750674608636,0.38124,101580.0,101570.0,0.05269263]
[1750674611402,0.38124,101580.0,101570.0,0.08309263]
[1750674614760,0.38124,101580.0,101570.0,0.05269263]
[1750674616550,0.38124,101580.0,101570.0,0.08549263]
[1750674618996,0.38124,101580.0,101570.0,0.06340277]
[1750674619650,0.38124,101580.0,101570.0,0.09650277]
[1750674619858,0.38124,101580.0,101570.0,0.0961509]
[1750674623275,0.0294433,101590.0,101570.0,0.0961509]
[1750674623491,0.01843341,101590.0,101580.0,0.0301]
[1750674623724,0.22011341,101590.0,101580.0,0.03960509]
[1750674625242,0.56211341,101590.0,101580.0,0.03960509]
[1750674625443,0.56011341,101590.0,101580.0,0.03960509]
[1750674625644,0.54268,101590.0,101580.0,0.03960509]
[1750674625854,0.20468,101590.0,101580.0,0.03960509]
[1750674626050,0.54368,101590.0,101580.0,0.03960509]
[1750674626678,0.57608,101590.0,101580.0,0.00950509]
[1750674626882,0.57708,101590.0,101580.0,0.00950509]
[1750674627089,0.57708,101590.0,101580.0,0.00950509]
[1750674628213,0.57445313,101590.0,101580.0,0.00950509]
[1750674628858,0.57445313,101590.0,101580.0,0.04190509]
[1750674629059,0.59288877,101590.0,101580.0,0.04190509]
[1750674629262,0.39120877,101590.0,101580.0,0.04190509]
[1750674629474,0.59288877,101590.0,101580.0,0.04190509]
[1750674630313,0.43260877,101590.0,101580.0,0.07470509]
[1750674630513,0.59288833,101590.0,101580.0,0.07470509]
[1750674633401,0.5928886,101590.0,101580.0,0.07470509]
[1750674634128,0.5928886,101590.0,101580.0,0.04190509]
[1750674636386,0.59288884,101590.0,101580.0,0.04190509]
[1750674638203,0.59288884,101590.0,101580.0,0.07220509]
[1750674639024,0.59288884,101590.0,101580.0,0.04190509]
[1750674645077,0.60273145,101590.0,101580.0,0.04190509]
[1750674645628,0.59288884,101590.0,101580.0,0.04190509]
[1750674647847,0.59289232,101590.0,101580.0,0.04190509]
[1750674648217,0.59289232,101590.0,101580.0,0.07240509]
[1750674653607,0.59289525,101590.0,101580.0,0.07240509]
[1750674656732,0.07405313,101590.0,101580.0,0.07240509]
[1750674656962,0.23425313,101590.0,101580.0,0.07240509]
[1750674657193,0.57425313,101590.0,101580.0,0.07240509]
[1750674658258,0.57425313,101590.0,101580.0,0.17270448]
[1750674670394,0.37277313,101590.0,101580.0,0.17270448]
[1750674670603,0.57421313,101590.0,101580.0,0.17270448]
[1750674671051,0.20144,101590.0,101580.0,0.17270448]
[1750674671245,0.04128,101590.0,101580.0,0.17270448]
[1750674671502,0.20144,101590.0,101580.0,0.17270448]
[1750674672332,0.04128,101590.0,101580.0,0.17270448]
[1750674672675,0.04128,101590.0,101580.0,0.17470448]
[1750674672871,0.26752631,101610.0,101600.0,0.0317]
[1750674672872,0.23672631,101610.0,101600.0,0.0317]
[1750674673080,0.23672631,101610.0,101600.0,0.03788]
[1750674673081,0.77816631,101610.0,101600.0,0.03788]
[1750674674798,0.57672631,101610.0,101600.0,0.07008]
[1750674675003,0.27796631,101610.0,101600.0,0.07008]
[1750674675202,0.43812631,101610.0,101600.0,0.07008]
[1750674675624,0.43812631,101610.0,101600.0,0.07208]
[1750674676369,0.43812631,101610.0,101600.0,0.17237939]
[1750674677478,0.04124,101610.0,101600.0,0.17237939]
[1750674679030,0.04124,101610.0,101600.0,0.17337939]
[1750674679260,0.04124,101610.0,101600.0,0.17937939]
[1750674682421,0.04124,101610.0,101600.0,0.17797939]
[1750674683434,0.04124,101610.0,101600.0,0.05734401]
[1750674683633,0.04124,101610.0,101600.0,0.0393]
[1750674684025,0.04124,101610.0,101600.0,0.13959939]
[1750674686466,0.04124,101610.0,101600.0,0.17259939]
[1750674693833,0.34,101620.0,101600.0,0.17259939]
[1750674694035,0.38124,101620.0,101610.0,0.0636]
[1750674694245,0.54136,101620.0,101610.0,0.08114985]
[1750674694641,0.04124,101620.0,101610.0,0.08114985]
[1750674695309,0.04124,101620.0,101610.0,0.18390946]
[1750674695519,0.04124,101620.0,101610.0,0.18444924]
[1750674696399,0.04124,101620.0,101610.0,0.21404224]
[1750674696940,0.04124,101620.0,101610.0,0.21604224]
[1750674705997,0.04128,101620.0,101610.0,0.21604224]
[1750674707169,0.2321,101620.0,101610.0,0.05214285]
[1750674707369,0.2633,101620.0,101610.0,0.034593]
[1750674707577,0.2321,101620.0,101610.0,0.034593]
[1750674707767,0.2321,101620.0,101610.0,0.005]
[1750674707975,0.2014,101620.0,101610.0,0.0372]
[1750674709956,0.04128,101620.0,101610.0,0.0372]
[1750674710193,0.04128,101620.0,101610.0,0.04705337]
[1750674723841,0.04128,101620.0,101610.0,0.07835337]
[1750674724252,0.04128,101620.0,101610.0,0.04705337]
[1750674726477,0.07338,101620.0,101610.0,0.01485337]
[1750674727720,0.10618,101620.0,101610.0,0.005]
[1750674730631,0.4560199,101620.0,101610.0,0.005]
[1750674730854,0.48367829,101620.0,101610.0,0.005]
[1750674731175,0.49351829,101620.0,101610.0,0.005]
[1750674731271,0.49351838,101620.0,101600.0,0.00013873]
[1750674731515,0.19208,101610.0,101600.0,0.00013873]
[1750674732454,0.19208,101610.0,101600.0,0.00313873]
[1750674732668,0.19208,101610.0,101600.0,0.00513873]
[1750674733084,0.19208,101610.0,101600.0,0.00313873]
[1750674733321,0.19208,101610.0,101600.0,0.00613873]
[1750674733916,0.19208,101610.0,101600.0,0.00313873]
[1750674734328,0.19208,101610.0,101600.0,0.00713873]
[1750674734943,0.16008,101610.0,101600.0,0.03743873]
[1750674735163,0.16008,101610.0,101600.0,0.0441826]
[1750674736154,0.19218,101610.0,101600.0,0.0138826]
[1750674739775,0.16008,101610.0,101600.0,0.0138826]
[1750674739987,0.16008,101610.0,101600.0,0.0457826]
[1750674740608,0.19018,101610.0,101600.0,0.0138826]
[1750674742013,0.16008,101610.0,101600.0,0.0461826]
[1750674743467,0.04124,101610.0,101600.0,0.0461826]
[1750674744649,0.20132,101610.0,101600.0,0.0461826]
[1750674758900,0.20132,101610.0,101600.0,0.0782826]
[1750674774413,0.19132,101610.0,101600.0,0.0782826]
[1750674776276,0.36284,101620.0,101610.0,0.0304]
[1750674776277,0.33004,101620.0,101610.0,0.0304]
[1750674776415,0.37124,101620.0,101610.0,0.0807682]
[1750674777488,0.37124,101620.0,101610.0,0.0817682]
[1750674779197,0.01,101630.0,101610.0,0.18206759]
[1750674779544,0.21124,101630.0,101620.0,0.0623]
[1750674779755,0.55124,101630.0,101620.0,0.0623]
[1750674779957,0.21124,101630.0,101620.0,0.08358616]
[1750674780178,0.55124,101630.0,101620.0,0.05278616]
[1750674780383,0.35,101630.0,101620.0,0.05278616]
[1750674780584,0.55124,101630.0,101620.0,0.05278616]
[1750674780996,0.51004,101630.0,101620.0,0.05278616]
[1750674781206,0.55124,101630.0,101620.0,0.05278616]
[1750674782235,0.20124,101630.0,101620.0,0.05278616]
[1750674784260,0.54124,101630.0,101620.0,0.05278616]
[1750674791612,0.61497893,101630.0,101620.0,0.02128616]
[1750674791842,0.58217883,101630.0,101610.0,0.0315]
[1750674792040,0.59201796,101630.0,101610.0,0.0315]
[1750674792325,0.58217883,101630.0,101610.0,0.0315]
[1750674792530,0.59201786,101630.0,101610.0,0.0315]
[1750674792757,0.59201786,101630.0,101610.0,0.03865826]
[1750674792758,0.59201776,101630.0,101610.0,0.03865826]
[1750674793320,0.60185679,101630.0,101610.0,0.07075826]
[1750674793540,0.59201776,101630.0,101610.0,0.07075826]
[1750674794196,0.34,101620.0,101610.0,0.03865826]
[1750674795450,0.34,101620.0,101610.0,0.03965826]
[1750674795874,0.34,101620.0,101610.0,0.04165826]
[1750674796294,0.34,101620.0,101610.0,0.01015826]
[1750674796489,0.3724,101620.0,101610.0,0.01015826]
[1750674798180,0.34,101620.0,101610.0,0.01015826]
[1750674798569,0.31473592,101630.0,101610.0,0.01015826]
[1750674798772,0.41075213,101630.0,101610.0,0.01015826]
[1750674798969,0.41075213,101630.0,101610.0,0.04315826]
[1750674799148,0.40091271,101630.0,101610.0,0.04315826]
[1750674799360,0.40091271,101630.0,101610.0,0.04215826]
[1750674799559,0.41075222,101630.0,101610.0,0.04015826]
[1750674799761,0.41075213,101630.0,101610.0,0.04015826]
[1750674800232,0.40091271,101630.0,101610.0,0.04015826]
[1750674800622,0.34,101620.0,101610.0,0.04015826]
[1750674800962,0.38312576,101630.0,101610.0,0.04015826]
[1750674801182,0.41075507,101630.0,101610.0,0.04015826]
[1750674801413,0.39107614,101630.0,101610.0,0.04015826]
[1750674801846,0.39107614,101630.0,101610.0,0.04115826]
[1750674802290,0.38123682,101630.0,101610.0,0.04015826]
[1750674802515,0.38123682,101630.0,101610.0,0.04215826]
[1750674802802,0.32885857,101630.0,101610.0,0.07045826]
[1750674803051,0.33869731,101630.0,101610.0,0.07045826]
[1750674803251,0.34853634,101630.0,101610.0,0.07045826]
[1750674803574,0.35837556,101630.0,101610.0,0.07045826]
[1750674803989,0.34853634,101630.0,101610.0,0.07045826]
[1750674804194,0.34854138,101630.0,101610.0,0.07045826]
[1750674805054,0.34,101620.0,101610.0,0.07045826]
[1750674806031,0.34,101620.0,101610.0,0.07145826]
[1750674806739,0.34,101620.0,101610.0,0.07345826]
[1750674811911,0.54112,101620.0,101610.0,0.07345826]
[1750674815687,0.34,101630.0,101620.0,0.0303]
[1750674816021,0.34,101630.0,101620.0,0.07017583]
[1750674816022,0.54112,101630.0,101620.0,0.07017583]
[1750674818166,0.38116,101630.0,101620.0,0.07017583]
[1750674818420,0.20112,101630.0,101620.0,0.07017583]
[1750674819015,0.04116,101630.0,101620.0,0.07017583]
[1750674819193,0.20112,101630.0,101620.0,0.07017583]
[1750674820805,0.54112,101630.0,101620.0,0.07017583]
[1750674822293,0.38116,101630.0,101620.0,0.07017583]
[1750674833251,0.40116,101630.0,101620.0,0.07017583]
[1750674851242,0.36,101630.0,101620.0,0.07017583]
[1750674859485,0.36,101630.0,101620.0,0.07117583]
[1750674860078,0.36,101630.0,101620.0,0.07317583]
[1750674860396,0.36,101630.0,101620.0,0.07117583]
[1750674860601,0.36,101630.0,101620.0,0.07517583]
[1750674861011,0.36,101630.0,101620.0,0.07417583]
[1750674861414,0.36,101630.0,101620.0,0.07717583]
[1750674865304,0.02,101630.0,101620.0,0.07717583]
[1750674866531,0.0412,101640.0,101630.0,0.0309]
[1750674866734,0.06885952,101640.0,101630.0,0.06917758]
[1750674867320,0.0985457,101640.0,101630.0,0.06917758]
[1750674867686,0.2585057,101640.0,101630.0,0.06917758]
[1750674867838,0.25850593,101640.0,101630.0,0.07017758]
[1750674868429,0.24006602,101640.0,101630.0,0.07017758]
[1750674868649,0.24006623,101640.0,101630.0,0.07017758]
[1750674869277,0.24006623,101640.0,101630.0,0.07217758]
[1750674871068,0.24006623,101640.0,101630.0,0.04167758]
[1750674871473,0.24006566,101640.0,101630.0,0.04167758]
[1750674872018,0.24006572,101640.0,101630.0,0.04167758]
[1750674874392,0.24006559,101640.0,101630.0,0.04167758]
[1750674875025,0.25850428,101640.0,101630.0,0.04167758]
[1750674877344,0.25850558,101640.0,101630.0,0.04167758]
[1750674878774,0.0412,101640.0,101630.0,0.04167758]
[1750674880026,0.20112,101640.0,101630.0,0.07257758]
[1750674880860,0.20112,101640.0,101630.0,0.04167758]
[1750674881269,0.23053894,101640.0,101630.0,0.04167758]
[1750674883563,0.23053894,101640.0,101630.0,0.07447758]
[1750674890701,0.23976007,101640.0,101630.0,0.07447758]
[1750674891300,0.23976006,101640.0,101630.0,0.07447758]
[1750674892841,0.23975997,101640.0,101630.0,0.07447758]
[1750674898813,0.34,101630.0,101620.0,0.0617]
[1750674900008,0.34,101630.0,101620.0,0.0647]
[1750674900204,0.34,101630.0,101620.0,0.0687]
[1750674902817,0.34,101630.0,101620.0,0.0384]
[1750674903235,0.36889696,101630.0,101620.0,0.01393]
[1750674903442,0.40893609,101630.0,101620.0,0.01393]
[1750674903654,0.42737464,101630.0,101620.0,0.01393]
[1750674903856,0.41753551,101630.0,101620.0,0.01393]
[1750674904315,0.40769658,101630.0,101620.0,0.01093]
[1750674904467,0.38733551,101630.0,101620.0,0.03723]
[1750674904676,0.38733551,101630.0,101620.0,0.03823]
[1750674904881,0.35905803,101630.0,101620.0,0.03823]
[1750674906478,0.34921929,101630.0,101620.0,0.03823]
[1750674906678,0.3590522,101630.0,101620.0,0.03823]
[1750674906898,0.34921346,101630.0,101620.0,0.03823]
[1750674907129,0.34,101630.0,101620.0,0.03823]
[1750674908151,0.34,101630.0,101620.0,0.0632]
[1750674908941,0.54104,101630.0,101620.0,0.0632]
[1750674909409,0.43708203,101640.0,101630.0,0.0301]
[1750674909610,0.59809156,101640.0,101630.0,0.0629]
[1750674910957,0.59909156,101640.0,101630.0,0.0629]
[1750674911171,0.59909156,101640.0,101630.0,0.06919]
[1750674911370,0.39805156,101640.0,101630.0,0.06919]
[1750674911627,0.58066981,101640.0,101630.0,0.06919]
[1750674912267,0.37962981,101640.0,101630.0,0.06919]
[1750674912491,0.58066981,101640.0,101630.0,0.06919]
[1750674912624,0.58066915,101640.0,101630.0,0.06919]
[1750674913508,0.58066927,101640.0,101630.0,0.06919]
[1750674914517,0.37962927,101640.0,101630.0,0.06919]
[1750674914733,0.57145894,101640.0,101630.0,0.06919]
[1750674916328,0.41153894,101640.0,101630.0,0.06919]
[1750674916598,0.57145894,101640.0,101630.0,0.06919]
[1750674917002,0.41153894,101640.0,101630.0,0.06919]
[1750674917203,0.54204,101640.0,101630.0,0.06919]
[1750674918664,0.38212,101640.0,101630.0,0.06919]
[1750674918864,0.54204,101640.0,101630.0,0.06919]
[1750674920386,0.04212,101640.0,101630.0,0.06919]
[1750674921273,0.38212,101640.0,101630.0,0.06919]
[1750674921908,0.341,101640.0,101630.0,0.06919]
[1750674922126,0.341,101640.0,101630.0,0.16948939]
[1750674923321,0.34,101640.0,101630.0,0.16948939]
[1750674923660,0.34,101640.0,101630.0,0.17248939]
[1750674924268,0.34,101640.0,101630.0,0.17548939]
[1750674932783,0.01764856,101650.0,101630.0,0.11258939]
[1750674932982,0.34,101640.0,101630.0,0.11258939]
[1750674933473,0.34,101640.0,101630.0,0.17488939]
[1750674933675,0.34,101640.0,101630.0,0.17188939]
[1750674933874,0.34,101640.0,101630.0,0.17288939]
[1750674934529,0.34,101640.0,101630.0,0.17188939]
[1750674934770,0.34,101640.0,101630.0,0.17488939]
[1750674936437,0.2016,101650.0,101640.0,0.0637]
[1750674936645,0.2016,101650.0,101640.0,0.08132894]
[1750674937395,0.23333129,101650.0,101640.0,0.08132894]
[1750674937593,0.23333129,101650.0,101640.0,0.08232894]
[1750674937713,0.23333129,101650.0,101640.0,0.08332894]
[1750674948165,0.24255093,101650.0,101640.0,0.08332894]
[1750674950599,0.24255037,101650.0,101640.0,0.08332894]
[1750674953430,0.24255128,101650.0,101640.0,0.08332894]
[1750674959568,0.04095128,101650.0,101640.0,0.08332894]
[1750674959851,0.24239127,101650.0,101640.0,0.08332894]
[1750674960238,0.24239145,101650.0,101640.0,0.08332894]